lending/lending_fUSD_20260310
["ID","MTS","AMOUNT","RATE_DAILY","PERIOD"]
[408157076,1773181893062,-152.76,0.00046735,120]
[408157077,1773181893073,-1394.0,0.00046739,120]
[408157078,1773181893085,-150.73,0.0004674,120]
[408157079,1773181893096,-154.52,0.00046751,120]
[408157080,1773181893107,-168.81,0.00046755,2]
[408157081,1773181893121,-150.0,0.00046772,120]
[408157082,1773181893132,-759.39,0.00046783,120]
[408157083,1773181893144,-150.0,0.00046788,120]
[408157084,1773181893156,-5000.0,0.00046789,30]
[408157085,1773181893167,-38309.63356431,0.0004679,120]
[408157086,1773181893178,-1394.0,0.00046794,120]
[408157087,1773181893189,-199.72,0.000468,120]
[408157088,1773181893199,-3566.77080373,0.000468,120]
[408157089,1773181893210,-190.72821429,0.000468,120]
[408157090,1773181893221,-156.52633428,0.00046811,2]
[408157091,1773181893232,-150.73,0.0004684,120]
[408157092,1773181893243,-1394.0,0.00046849,120]
[408157093,1773181893255,-2871.6,0.00046849,120]
[408157094,1773181893265,-154.52,0.00046851,120]
[408157095,1773181893277,-2930.38210882,0.00046868,64]
[408157096,1773181893288,-150.0,0.00046872,120]
[408157097,1773181893298,-2899.62,0.00046885,120]
[408157098,1773181893310,-456.0,0.00046886,120]
[408157099,1773181893321,-1352.0,0.000469,120]
[408157100,1773181893331,-3076.47141688,0.000469,120]
[408157101,1773181893342,-5000.0,0.000469,120]
[408157102,1773181893353,-4003.6222862,0.000469,120]
[408157103,1773181893364,-30452.0,0.000469,120]
[408157104,1773181893375,-1839.25975039,0.000469,120]
[408157105,1773181893386,-3052.88619249,0.000469,120]
[408157106,1773181893398,-1394.0,0.00046904,120]
[408157107,1773181893418,-150.73,0.0004694,120]
[408157108,1773181893432,-154.52,0.00046951,120]
[408157109,1773181893443,-1394.0,0.00046959,120]
[408157110,1773181893453,-1436.73,0.00046977,120]
[408157111,1773181893464,-214.0,0.0004698,30]
[408157112,1773181893475,-295.48849014,0.00046995,120]
[408157113,1773181893486,-165.224938,0.00046997,120]
[408157114,1773181893498,-1474.57911915,0.00046998,120]
[408157115,1773181893509,-1000.0,0.00046999,120]
[408157116,1773181893520,-50000.0,0.00047,72]
[408157117,1773181893530,-535.81398465,0.00047,120]
[408157118,1773181893541,-2224.08744098,0.00047,30]
[408157119,1773181893552,-2000.0,0.00047,120]
[408157120,1773181893563,-2500.0,0.00047,30]
[408157121,1773181893574,-1000.0,0.00047,60]
[408157122,1773181893585,-20000.0,0.00047,120]
[408157123,1773181893596,-1000.0,0.00047,120]
[408157124,1773181893607,-1000.0,0.00047,60]
[408157125,1773181893618,-9000.0,0.00047,60]
[408157126,1773181893629,-1064.53,0.00047,120]
[408157127,1773181893640,-152.90327771,0.00047,120]
[408157128,1773181893651,-100000.0,0.00047,120]
[408157129,1773181893661,-2401.94,0.00047,30]
[408157130,1773181893672,-2000.0,0.00047,120]
[408157131,1773181893684,-1649.79620876,0.00047,120]
[408157132,1773181893695,-27013.0,0.00047,120]
[408157133,1773181893707,-475.25893373,0.00047,120]
[408157134,1773181893718,-699.28886782,0.00047,120]
[408157135,1773181893728,-300.77,0.00047,120]
[408157136,1773181893739,-2805.98,0.00047,120]
[408157137,1773181893751,-2093.30323012,0.00047,120]
[408157138,1773181893762,-2000.0,0.00047,90]
[408157139,1773181893773,-674.0,0.00047,30]
[408157140,1773181893788,-245.0,0.00047,30]
[408157141,1773181893799,-736.0,0.00047,30]
[408157142,1773181893810,-382.0,0.00047,120]
[408157143,1773181893821,-23955.0,0.00047,120]
[408157144,1773181893834,-500.0,0.00047,120]
[408157145,1773181893844,-150.0,0.00047008,120]
[408157146,1773181893856,-50000.0,0.0004701,120]
[408157147,1773181893866,-1394.0,0.00047013,120]
[408157148,1773181893878,-5000.0,0.00047024,30]
[408157149,1773181893890,-150.73,0.0004704,120]
[408157150,1773181893901,-154.52,0.00047051,120]
[408157151,1773181893912,-759.39,0.00047057,120]
[408157152,1773181893925,-150.0,0.0004706,120]
[408157153,1773181893936,-1625.01277284,0.00047065,113]
[408157154,1773181893948,-1394.0,0.00047068,120]
[408157155,1773181893959,-150.0,0.00047085,120]
[408157156,1773181893970,-156.52633428,0.00047085,2]
[408157157,1773181893981,-1700.19,0.000471,15]
[408157158,1773181893992,-7927.9186679,0.000471,120]
[408157159,1773181894003,-200000.0,0.000471,30]
[408157160,1773181894014,-1394.0,0.00047123,120]
[408157161,1773181894025,-600.0,0.00047123,60]
[408157162,1773181894036,-2871.6,0.00047123,120]
[408157163,1773181894051,-500.0,0.00047123,60]
[408157164,1773181894063,-1000.0,0.0004713,120]
[408157165,1773181894074,-1000.0,0.0004713,120]
[408157166,1773181894086,-1000.0,0.0004713,120]
[408157167,1773181894098,-1000.0,0.0004713,120]
[408157168,1773181894110,-1000.0,0.0004713,120]
[408157169,1773181894121,-1000.0,0.0004713,120]
[408157170,1773181894132,-1000.0,0.0004713,120]
[408157171,1773181894143,-1000.0,0.0004713,120]
[408157172,1773181894158,-1651.14779911,0.0004713,120]
[408157173,1773181894169,-160.18216998,0.00047131,2]
[408157174,1773181894182,-150.73,0.0004714,120]
[408157175,1773181894194,-154.52,0.00047151,120]
[408157176,1773181894205,-150.0,0.00047152,120]
[408157177,1773181894216,-1000.0,0.00047161,120]
[408157178,1773181894227,-1000.0,0.00047161,120]
[408157179,1773181894238,-1000.0,0.00047161,120]
[408157180,1773181894250,-1000.0,0.00047161,120]
[408157181,1773181894262,-1000.0,0.00047161,120]
[408157182,1773181894274,-1000.0,0.00047161,120]
[408157183,1773181894285,-1000.0,0.00047161,120]
[408157184,1773181894296,-1000.0,0.00047161,120]
[408157185,1773181894307,-1651.14779911,0.00047161,120]
[408157186,1773181894318,-1394.0,0.00047178,120]
[408157187,1773181894330,-295.48849013,0.00047185,120]
[408157188,1773181894341,-500.0,0.000472,120]
[408157189,1773181894351,-500.0,0.000472,120]
[408157190,1773181894364,-624.8748248,0.000472,30]
[408157191,1773181894376,-150.0,0.00047222,120]
[408157192,1773181894387,-810.89729393,0.00047222,120]
[408157193,1773181894399,-258.76551089,0.00047222,120]
[408157194,1773181894410,-1394.0,0.00047233,120]
[408157195,1773181894421,-2000.0,0.00047234,31]
[408157196,1773181894432,-150.73,0.0004724,120]
[408157197,1773181894443,-327.04,0.00047245,120]
[408157198,1773181894453,-500.0,0.0004725,120]
[408157199,1773181894464,-500.0,0.0004725,120]
[408157200,1773181894475,-500.0,0.0004725,120]
[408157201,1773181894485,-500.0,0.0004725,120]
[408157202,1773181894496,-500.0,0.0004725,120]
[408157203,1773181894507,-500.0,0.0004725,120]
[408157204,1773181894517,-961.83,0.0004725,30]
[408157205,1773181894532,-1687.91,0.0004725,30]
[408157206,1773181894542,-154.52,0.00047251,120]
[408157207,1773181894553,-1000.0,0.0004726,120]
[408157208,1773181894564,-2698.23780891,0.0004728,2]
[408157209,1773181894575,-1394.0,0.00047287,120]
[408157210,1773181894586,-500.0,0.000473,120]
[408157211,1773181894597,-500.0,0.000473,120]
[408157212,1773181894608,-500.0,0.000473,120]
[408157213,1773181894618,-500.0,0.000473,120]
[408157214,1773181894629,-500.0,0.000473,120]
[408157215,1773181894639,-500.0,0.000473,120]
[408157216,1773181894650,-326.8329,0.000473,90]
[408157217,1773181894661,-192.03461732,0.000473,90]
[408157218,1773181894671,-363.0844,0.000473,120]
[408157219,1773181894682,-155.60059097,0.000473,90]
[408157220,1773181894693,-176.57858192,0.000473,90]
[408157221,1773181894703,-193.9466,0.000473,30]
[408157222,1773181894714,-161.6222,0.000473,60]
[408157223,1773181894725,-3243.516,0.000473,90]
[408157224,1773181894737,-3243.516,0.000473,90]
[408157225,1773181894748,-3243.51,0.000473,90]
[408157226,1773181894759,-1268.003,0.000473,90]
[408157227,1773181894770,-1268.003,0.000473,90]
[408157228,1773181894780,-1268.0,0.000473,90]
[408157229,1773181894791,-1395.367,0.000473,120]
[408157230,1773181894802,-1395.36,0.000473,120]
[408157231,1773181894812,-1602.571,0.000473,90]
[408157232,1773181894823,-1602.57,0.000473,90]
[408157233,1773181894833,-150.0,0.00047308,120]
[408157234,1773181894844,-217.54204116,0.00047313,120]
[408157235,1773181894855,-218.61207107,0.00047313,120]
[408157236,1773181894865,-236.50722686,0.00047313,120]
[408157237,1773181894876,-222.44773581,0.00047313,120]
[408157238,1773181894886,-222.71783792,0.00047313,120]
[408157239,1773181894901,-16420.93681828,0.00047313,113]
[408157240,1773181894912,-759.39,0.00047331,120]
[408157241,1773181894923,-382.0,0.00047337,120]
[408157242,1773181894934,-382.0,0.00047337,120]
[408157243,1773181894944,-150.73,0.0004734,120]
[408157244,1773181894955,-1394.0,0.00047342,120]
[408157245,1773181894965,-500.0,0.0004735,120]
[408157246,1773181894976,-500.0,0.0004735,120]
[408157247,1773181894986,-500.0,0.0004735,120]
[408157248,1773181894997,-500.0,0.0004735,120]
[408157249,1773181895007,-500.0,0.0004735,120]
[408157250,1773181895018,-500.0,0.0004735,120]
[408157251,1773181895031,-500.0,0.0004735,120]
[408157252,1773181895046,-500.0,0.0004735,120]
[408157253,1773181895067,-154.52,0.00047351,120]
[408157254,1773181895087,-156.52633428,0.00047359,2]
[408157255,1773181895099,-1394.0,0.00047397,120]
[408157256,1773181895110,-2871.6,0.00047397,120]
[408157257,1773181895121,-2775.4,0.00047397,80]
[408157258,1773181895132,-2775.4,0.00047397,80]
[408157259,1773181895478,-2775.4,0.00047397,80]
[408157260,1773181895528,-2775.4,0.00047397,80]
[408157261,1773181895539,-2775.4,0.00047397,80]
[408157262,1773181895549,-2775.4,0.00047397,80]
[408157263,1773181895559,-2775.4,0.00047397,80]
[408157264,1773181895569,-2775.4,0.00047397,80]
[408157265,1773181895579,-2775.4,0.00047397,80]
[408157266,1773181895589,-2775.4,0.00047397,80]
[408157267,1773181895599,-2775.4,0.00047397,80]
[408157268,1773181895609,-2775.4,0.00047397,80]
[408157269,1773181895618,-2775.4,0.00047397,80]
[408157270,1773181895628,-2775.4,0.00047397,80]
[408157271,1773181895637,-2775.4,0.00047397,80]
[408157272,1773181895647,-2775.4,0.00047397,80]
[408157273,1773181895656,-2775.4,0.00047397,80]
[408157274,1773181895666,-2775.4,0.00047397,80]
[408157275,1773181895676,-2775.4,0.00047397,80]
[408157276,1773181895686,-2775.4,0.00047397,80]
[408157277,1773181895695,-500.0,0.000474,120]
[408157278,1773181895705,-500.0,0.000474,120]
[408157279,1773181895715,-500.0,0.000474,120]
[408157280,1773181895724,-500.0,0.000474,120]
[408157281,1773181895734,-500.0,0.000474,120]
[408157282,1773181895744,-500.0,0.000474,120]
[408157283,1773181895754,-500.0,0.000474,120]
[408157284,1773181895763,-500.0,0.000474,120]
[408157285,1773181895772,-500.0,0.000474,120]
[408157286,1773181895782,-500.0,0.000474,120]
[408157287,1773181895791,-461.62373907,0.000474,120]
[408157288,1773181895802,-2401.94,0.000474,45]
[408157289,1773181895812,-2401.94,0.000474,55]
[408157290,1773181895822,-200.0,0.000474,21]
[408157291,1773181895832,-9570.0,0.000474,120]
[408157292,1773181895843,-500.0,0.00047401,120]
[408157293,1773181895852,-150.0,0.00047417,120]
[408157294,1773181895862,-279.17391493,0.00047435,4]
[408157295,1773181895872,-500.0,0.0004744,120]
[408157296,1773181895882,-500.0,0.0004744,120]
[408157297,1773181895892,-500.0,0.0004744,120]
[408157298,1773181895902,-500.0,0.0004744,120]
[408157299,1773181895912,-500.0,0.0004744,120]
[408157300,1773181895922,-500.0,0.0004744,120]
[408157301,1773181895932,-500.0,0.0004744,120]
[408157302,1773181895942,-500.0,0.0004744,120]
[408157303,1773181895951,-500.0,0.0004744,120]
[408157304,1773181895961,-500.0,0.0004744,120]
[408157305,1773181895971,-150.73,0.0004744,120]
[408157306,1773181895980,-91868.14911538,0.0004745,6]
[408157307,1773181895989,-92215.90865795,0.0004745,7]
[408157308,1773181895999,-92215.90865795,0.0004745,8]
[408157309,1773181896009,-92215.90865795,0.0004745,9]
[408157310,1773181896019,-92215.90865795,0.0004745,10]
[408157311,1773181896028,-154.52,0.00047451,120]
[408157312,1773181896039,-1394.0,0.00047452,120]
[408157313,1773181896052,-200.0,0.0004747,3]
[408157314,1773181896063,-500.0,0.00047483,2]
[408157315,1773181896074,-151.0,0.00047497,30]
[408157316,1773181896084,-6888.0,0.00047497,30]
[408157317,1773181896094,-250.0,0.00047497,30]
[408157318,1773181896104,-1030.0,0.00047497,30]
[408157319,1773181896115,-151.0,0.00047497,30]
[408157320,1773181896125,-8000.0,0.00047497,30]
[408157321,1773181896135,-520.0,0.00047497,30]
[408157322,1773181896144,-156.587,0.00047497,90]
[408157323,1773181896154,-500.0,0.00047497,30]
[408157324,1773181896164,-7142.856,0.00047497,90]
[408157325,1773181896173,-250.0,0.00047497,90]
[408157326,1773181896183,-1068.11,0.00047497,90]
[408157327,1773181896194,-539.24,0.00047497,90]
[408157328,1773181896203,-8000.0,0.00047497,90]
[408157329,1773181896213,-500.0,0.00047497,90]
[408157330,1773181896223,-162.380719,0.00047497,120]
[408157331,1773181896233,-250.0,0.00047497,120]
[408157332,1773181896243,-4866.05669673,0.00047497,120]
[408157333,1773181896252,-559.19188,0.00047497,120]
[408157334,1773181896262,-8000.0,0.00047497,120]
[408157335,1773181896272,-500.0,0.00047497,120]
[408157336,1773181896282,-1107.63007,0.00047497,120]
[408157337,1773181896292,-500.0,0.00047497,30]
[408157338,1773181896303,-500.0,0.00047497,30]
[408157339,1773181896313,-500.0,0.00047497,90]
[408157340,1773181896323,-500.0,0.00047497,90]
[408157341,1773181896333,-1500.0,0.00047497,30]
[408157342,1773181896343,-500.0,0.00047497,120]
[408157343,1773181896353,-151.0,0.00047497,30]
[408157344,1773181896363,-500.0,0.00047497,120]
[408157345,1773181896373,-1500.0,0.00047497,90]
[408157346,1773181896383,-151.0,0.00047497,90]
[408157347,1773181896394,-151.0,0.00047497,30]
[408157348,1773181896403,-1500.0,0.00047497,120]
[408157349,1773181896413,-262.5252799,0.00047497,120]
[408157350,1773181896423,-151.0,0.00047497,90]
[408157351,1773181896433,-151.0,0.00047497,120]
[408157352,1773181896443,-275.01385068,0.00047497,30]
[408157353,1773181896452,-1500.0,0.00047497,30]
[408157354,1773181896462,-1500.0,0.00047497,90]
[408157355,1773181896472,-500.0,0.00047497,30]
[408157356,1773181896482,-500.0,0.00047497,30]
[408157357,1773181896494,-3000.0,0.00047497,30]
[408157358,1773181896503,-1500.0,0.00047497,120]
[408157359,1773181896513,-500.0,0.00047497,90]
[408157360,1773181896523,-518.5,0.00047497,90]
[408157361,1773181896532,-3000.0,0.00047497,90]
[408157362,1773181896542,-500.0,0.00047497,120]
[408157363,1773181896552,-537.6845,0.00047497,120]
[408157364,1773181896562,-3000.0,0.00047497,120]
[408157365,1773181896571,-10000.0,0.00047497,30]
[408157366,1773181896581,-250.0,0.00047497,30]
[408157367,1773181896590,-287.00101734,0.00047497,90]
[408157368,1773181896600,-250.0,0.00047497,90]
[408157369,1773181896609,-1500.0,0.00047497,30]
[408157370,1773181896619,-250.0,0.00047497,120]
[408157371,1773181896629,-1500.0,0.00047497,90]
[408157372,1773181896638,-10000.0,0.00047497,30]
[408157373,1773181896649,-7777.0,0.00047497,30]
[408157374,1773181896658,-1500.0,0.00047497,120]
[408157375,1773181896668,-10000.0,0.00047497,90]
[408157376,1773181896677,-7777.0,0.00047497,30]
[408157377,1773181896687,-10000.0,0.00047497,120]
[408157378,1773181896696,-250.0,0.00047497,30]
[408157379,1773181896706,-250.0,0.00047497,30]
[408157380,1773181896716,-250.0,0.00047497,30]
[408157381,1773181896725,-250.0,0.00047497,30]
[408157382,1773181896735,-2000.0,0.00047497,30]
[408157383,1773181896744,-7777.0,0.00047497,30]
[408157384,1773181896755,-250.0,0.00047497,30]
[408157385,1773181896764,-7777.0,0.00047497,30]
[408157386,1773181896773,-2000.0,0.00047497,90]
[408157387,1773181896782,-250.0,0.00047497,30]
[408157388,1773181896791,-7777.0,0.00047497,30]
[408157389,1773181896801,-500.0,0.00047497,30]
[408157390,1773181896811,-250.0,0.00047497,30]
[408157391,1773181896820,-200.0,0.00047497,30]
[408157392,1773181896830,-7777.0,0.00047497,30]
[408157393,1773181896839,-500.0,0.00047497,90]
[408157394,1773181896848,-250.0,0.00047497,30]
[408157395,1773181896857,-151.0,0.00047497,30]
[408157396,1773181896866,-200.0,0.00047497,90]
[408157397,1773181896875,-160.0,0.00047497,30]
[408157398,1773181896884,-7777.0,0.00047497,30]
[408157399,1773181896894,-620.0,0.00047497,30]
[408157400,1773181896903,-250.0,0.00047497,30]
[408157401,1773181896912,-151.0,0.00047497,90]
[408157402,1773181896922,-275.17927069,0.00047497,90]
[408157403,1773181896931,-642.94,0.00047497,90]
[408157404,1773181896941,-7777.0,0.00047497,30]
[408157405,1773181896951,-151.0,0.00047497,30]
[408157406,1773181896960,-250.0,0.00047497,30]
[408157407,1773181896970,-151.0,0.00047497,120]
[408157408,1773181896979,-7777.0,0.00047497,30]
[408157409,1773181896989,-666.72878,0.00047497,120]
[408157410,1773181896998,-151.0,0.00047497,90]
[408157411,1773181897008,-250.0,0.00047497,30]
[408157412,1773181897017,-7777.0,0.00047497,30]
[408157413,1773181897027,-250.0,0.00047497,30]
[408157414,1773181897037,-7777.0,0.00047497,30]
[408157415,1773181897049,-250.0,0.00047497,30]
[408157416,1773181897059,-7777.0,0.00047497,30]
[408157417,1773181897068,-250.0,0.00047497,30]
[408157418,1773181897078,-151.0,0.00047497,30]
[408157419,1773181897089,-7777.0,0.00047497,30]
[408157420,1773181897098,-250.0,0.00047497,30]
[408157421,1773181897107,-156.587,0.00047497,90]
[408157422,1773181897117,-7777.0,0.00047497,30]
[408157423,1773181897128,-1000.0,0.00047497,30]
[408157424,1773181897138,-250.0,0.00047497,30]
[408157425,1773181897148,-162.380719,0.00047497,120]
[408157426,1773181897158,-1000.0,0.00047497,90]
[408157427,1773181897169,-250.0,0.00047497,30]
[408157428,1773181897178,-7777.0,0.00047497,30]
[408157429,1773181897187,-1000.0,0.00047497,120]
[408157430,1773181897196,-250.0,0.00047497,30]
[408157431,1773181897205,-7777.0,0.00047497,30]
[408157432,1773181897215,-250.0,0.00047497,30]
[408157433,1773181897226,-263.93507647,0.00047497,30]
[408157434,1773181897236,-7777.0,0.00047497,30]
[408157435,1773181897246,-7777.0,0.00047497,30]
[408157436,1773181897255,-500.0,0.00047497,30]
[408157437,1773181897265,-170.0,0.00047497,30]
[408157438,1773181897275,-518.5,0.00047497,90]
[408157439,1773181897286,-176.29,0.00047497,30]
[408157440,1773181897296,-151.0,0.00047497,30]
[408157441,1773181897306,-537.6845,0.00047497,120]
[408157442,1773181897317,-182.81273,0.00047497,30]
[408157443,1773181897326,-156.587,0.00047497,90]
[408157444,1773181897336,-189.57680101,0.00047497,30]
[408157445,1773181897345,-162.380719,0.00047497,120]
[408157446,1773181897354,-196.59114265,0.00047497,30]
[408157447,1773181897364,-1500.0,0.00047497,30]
[408157448,1773181897373,-203.86501493,0.00047497,30]
[408157449,1773181897383,-211.40802048,0.00047497,30]
[408157450,1773181897393,-219.23011724,0.00047497,30]
[408157451,1773181897403,-1500.0,0.00047497,90]
[408157452,1773181897413,-227.34163157,0.00047497,30]
[408157453,1773181897424,-1500.0,0.00047497,120]
[408157454,1773181897435,-235.75327194,0.00047497,30]
[408157455,1773181897444,-244.476143,0.00047497,30]
[408157456,1773181897456,-253.52176029,0.00047497,30]
[408157457,1773181897465,-251.0,0.00047497,30]
[408157458,1773181897474,-260.287,0.00047497,90]
[408157459,1773181897484,-269.917619,0.00047497,120]
[408157460,1773181897493,-400.0,0.00047497,30]
[408157461,1773181897503,-414.8,0.00047497,30]
[408157462,1773181897512,-430.1476,0.00047497,30]
[408157463,1773181897521,-446.0630612,0.00047497,30]
[408157464,1773181897531,-462.56739446,0.00047497,30]
[408157465,1773181897540,-479.68238806,0.00047497,30]
[408157466,1773181897549,-497.43063642,0.00047497,30]
[408157467,1773181897559,-526.30820911,0.00047497,30]
[408157468,1773181897568,-200.0,0.00047498,60]
[408157469,1773181897578,-252.98399946,0.00047498,30]
[408157470,1773181897589,-5000.0,0.00047498,30]
[408157471,1773181897599,-1109.0,0.00047498,30]
[408157472,1773181897609,-1109.0,0.00047498,30]
[408157473,1773181897618,-1104.0,0.00047498,30]
[408157474,1773181897627,-175.43106514,0.00047498,30]
[408157475,1773181897637,-907.07334333,0.000475,120]
[408157476,1773181897646,-1000.0,0.000475,60]
[408157477,1773181897655,-382.0,0.000475,120]
[408157478,1773181897664,-500.0,0.000475,120]
[408157479,1773181897674,-1394.0,0.00047507,120]
[408157480,1773181897685,-1281.4498747,0.0004751,60]
[408157481,1773181897696,-1009.4,0.00047516,7]
[408157482,1773181897707,-2724.54,0.00047516,7]
[408157483,1773181897717,-4347.34,0.00047516,30]
[408157484,1773181897728,-150.0,0.00047523,120]
[408157485,1773181897740,-150.0,0.00047524,120]
[408157486,1773181897751,-150.73,0.0004754,120]
[408157487,1773181897760,-150.0,0.00047543,120]
[408157488,1773181897772,-154.52,0.00047551,120]
[408157489,1773181897781,-1394.0,0.00047561,120]
[408157490,1773181897791,-15188.39157696,0.00047561,20]
[408157491,1773181897800,-154.339522,0.00047561,60]
[408157492,1773181897809,-150.0,0.00047579,120]
[408157493,1773181897819,-624.17285088,0.00047583,2]
[408157494,1773181897828,-150.0,0.00047588,120]
[408157495,1773181897837,-5296.61467437,0.000476,2]
[408157496,1773181897943,-169.44483279,0.000476,7]
[408157497,1773181897953,-152.0,0.000476,120]
[408157498,1773181897965,-759.39,0.00047605,120]
[408157499,1773181897974,-1394.0,0.00047616,120]
[408157500,1773181897983,-885.81746984,0.00047623,30]
[408157501,1773181897994,-156.52633428,0.00047633,2]
[408157502,1773181898004,-150.73,0.0004764,120]
[408157503,1773181898013,-154.52,0.00047651,120]
[408157504,1773181898022,-50000.0,0.0004766,50]
[408157505,1773181898031,-50000.0,0.0004766,55]
[408157506,1773181898041,-50000.0,0.0004766,56]
[408157507,1773181898054,-50000.0,0.0004766,57]
[408157508,1773181898063,-50000.0,0.0004766,49]
[408157509,1773181898073,-50000.0,0.0004766,54]
[408157510,1773181898083,-50000.0,0.0004766,58]
[408157511,1773181898093,-50000.0,0.0004766,59]
[408157512,1773181898102,-198.87,0.00047661,120]
[408157513,1773181898112,-151.0,0.00047661,30]
[408157514,1773181898121,-151.21,0.00047661,30]
[408157515,1773181898131,-399.2399548,0.00047661,2]
[408157516,1773181898141,-206295.31692283,0.00047661,2]
[408157517,1773181898151,-124630.6266834,0.00047661,2]
[408157518,1773181898160,-10891.79233624,0.00047661,3]
[408157519,1773181898173,-1210.0,0.00047661,2]
[408157520,1773181898183,-6112.49974201,0.00047661,2]
[408157521,1773181898193,-717.78241943,0.00047661,2]
[408157522,1773181898202,-355.64278377,0.00047661,2]
[408157523,1773181898212,-2860.85465724,0.00047661,2]
[408157524,1773181898222,-987.12602105,0.00047661,2]
[408157525,1773181898232,-1552.33979093,0.00047661,2]
[408157526,1773181898242,-1051.30407283,0.00047661,2]
[408157527,1773181898252,-5296.73976914,0.00047661,2]
[408157528,1773181898261,-501.0227275,0.00047661,2]
[408157529,1773181898271,-2507.19783507,0.00047661,2]
[408157530,1773181898281,-220870.86553553,0.00047661,2]
[408157531,1773181898290,-2760.76556156,0.00047661,2]
[408157532,1773181898299,-154.4787892,0.00047661,2]
[408157533,1773181898308,-1712.5755915,0.00047661,2]
[408157534,1773181898317,-254.36212763,0.00047661,2]
[408157535,1773181898327,-500.0,0.00047661,2]
[408157536,1773181898337,-1287.77860238,0.00047661,2]
[408157537,1773181898346,-248.42144898,0.00047661,2]
[408157538,1773181898355,-1063.40755057,0.00047661,2]
[408157539,1773181898364,-556.69837605,0.00047661,2]
[408157540,1773181898374,-599.64608784,0.00047661,2]
[408157541,1773181898383,-9430.0526917,0.00047661,2]
[408157542,1773181898392,-1339.06252354,0.00047661,2]
[408157543,1773181898401,-3491.86683791,0.00047661,2]
[408157544,1773181898411,-2242.52417453,0.00047661,2]
[408157545,1773181898420,-23371.175524,0.00047661,2]
[408157546,1773181898429,-763.16163473,0.00047661,2]
[408157547,1773181898438,-13101.77593742,0.00047661,2]
[408157548,1773181898448,-187.89063776,0.00047661,2]
[408157549,1773181898457,-643.0,0.00047661,2]
[408157550,1773181898466,-990.79545643,0.00047661,2]
[408157551,1773181898476,-584.97652605,0.00047661,2]
[408157552,1773181898485,-812240.40105726,0.00047661,2]
[408157553,1773181898494,-3308.7091735,0.00047661,2]
[408157554,1773181898503,-158.62424874,0.00047661,2]
[408157555,1773181898514,-179.01683892,0.00047661,2]
[408157556,1773181898523,-480.91844643,0.00047661,2]
[408157557,1773181898533,-7426.10729178,0.00047661,2]
[408157558,1773181898542,-550.0,0.00047661,2]
[408157559,1773181898551,-10928.74006825,0.00047661,2]
[408157560,1773181898572,-173655.43456623,0.00047661,2]
[408157561,1773181898582,-15252.37225733,0.00047661,2]
[408157562,1773181898591,-233.57487443,0.00047661,2]
[408157563,1773181898600,-177.26422527,0.00047661,2]
[408157564,1773181898610,-499.28138608,0.00047661,3]
[408157565,1773181898619,-6000.0,0.00047661,2]
[408157566,1773181898629,-1304.53503536,0.00047661,2]
[408157567,1773181898638,-382.927996,0.00047661,2]
[408157568,1773181898648,-1054.19099645,0.00047661,2]
[408157569,1773181898657,-5254.02617447,0.00047661,2]
[408157570,1773181898667,-675.28171349,0.00047661,2]
[408157571,1773181898676,-7952.2381919,0.00047661,2]
[408157572,1773181898685,-639.36001097,0.00047661,2]
[408157573,1773181898695,-219.18671647,0.00047661,2]
[408157574,1773181898704,-1088.70918931,0.00047661,2]
[408157575,1773181898714,-11357.34554529,0.00047661,2]